bitfinex/quotes_ETHUSD_20250804
["timestamp","ask_amount","ask_price","bid_price","bid_amount"]
[1754335211894,0.03389922,3687.4,3687.0,0.002]
[1754335211895,0.1352,3687.1,3687.0,0.002]
[1754335212097,2.8473586,3687.1,3687.0,0.002]
[1754335212290,5.8473586,3687.1,3687.0,0.002]
[1754335212511,7.21117743,3687.1,3687.0,0.4719]
[1754335212802,0.1352,3687.2,3687.0,0.9303]
[1754335213127,3.0,3688.0,3687.1,3.6404586]
[1754335213295,0.1352,3687.6,3687.2,3.18198505]
[1754335213499,0.1352,3687.6,3687.2,2.71208505]
[1754335213725,0.1352,3687.6,3687.3,0.9283]
[1754335214100,0.1352,3687.6,3687.2,2.71208505]
[1754335214301,0.1352,3687.6,3687.4,0.9283]
[1754335214839,0.1352,3687.6,3687.5,0.9283]
[1754335215620,3.1352,3687.6,3687.5,0.4699]
[1754335216557,0.1352,3687.6,3687.5,0.4699]
[1754335216736,0.1352,3687.6,3687.5,0.9038]
[1754335217625,0.1352,3687.8,3687.5,0.9038]
[1754335217828,0.1352,3687.8,3687.4,2.71191751]
[1754335218153,0.1352,3687.8,3687.6,0.896]
[1754335218558,0.1352,3687.8,3687.7,0.896]
[1754335218722,0.1352,3687.8,3687.7,3.60771733]
[1754335218926,0.1352,3688.2,3687.7,0.896]
[1754335219134,0.1352,3688.2,3687.8,0.896]
[1754335219627,0.1352,3688.2,3687.7,2.71171101]
[1754335219822,0.1352,3688.2,3687.8,0.896]
[1754335220022,0.1352,3688.2,3687.9,0.4621]
[1754335220023,1.27176751,3688.2,3687.9,0.4621]
[1754335220345,0.1352,3687.9,3687.5,3.14571736]
[1754335220547,0.1352,3687.9,3687.6,3.14565545]
[1754335220877,0.1352,3687.9,3687.6,0.4339]
[1754335221170,0.1352,3687.9,3687.7,3.17374621]
[1754335221326,0.1352,3687.9,3687.8,3.60764379]
[1754335222028,0.1352,3687.9,3687.8,0.896]
[1754335223740,0.1352,3687.9,3687.8,3.60764379]
[1754335224155,0.1352,3687.9,3687.8,7.81764379]
[1754335224337,0.1352,3688.4,3688.1,2.71137221]
[1754335224544,0.1352,3688.4,3688.2,0.896]
[1754335224772,0.1352,3688.4,3688.2,3.60731408]
[1754335224959,0.1352,3688.4,3688.3,0.896]
[1754335225731,0.1352,3688.4,3688.3,3.60727619]
[1754335226603,0.1352,3688.4,3688.3,0.896]
[1754335227221,0.1352,3688.4,3688.3,0.4621]
[1754335228059,0.1352,3688.4,3688.3,4.157]
[1754335228233,4.05721573,3688.4,3688.3,4.157]
[1754335228439,7.05721573,3688.4,3688.3,4.157]
[1754335228636,7.05721573,3688.4,3687.9,4.156]
[1754335228839,2.71139569,3688.2,3687.9,4.156]
[1754335229027,3.60510262,3688.3,3687.9,4.156]
[1754335229229,1.87064483,3688.3,3687.9,4.156]
[1754335229673,1.40814483,3688.3,3687.9,4.6181]
[1754335230239,0.97684483,3688.3,3688.0,0.4621]
[1754335230460,0.97684483,3688.3,3687.9,4.156]
[1754335230759,3.14259293,3688.3,3687.9,4.156]
[1754335230946,3.14259293,3688.3,3687.7,4.21]
[1754335230947,0.1352,3687.9,3687.7,4.21]
[1754335231147,0.1352,3687.9,3687.8,4.155]
[1754335232344,0.1352,3687.9,3687.8,4.6171]
[1754335233753,2.84677027,3687.9,3687.8,4.155]
[1754335233954,4.3395207,3687.9,3687.8,4.155]
[1754335234270,2.71167694,3687.8,3687.7,4.155]
[1754335234776,3.55,3687.6,3687.0,0.1372]
[1754335234975,2.7121586,3687.1,3687.0,0.1372]
[1754335235141,2.71210193,3687.2,3687.0,0.002]
[1754335235336,1.16501019,3687.1,3687.0,0.002]
[1754335235537,0.27121019,3687.1,3687.0,0.002]
[1754335236274,3.41466879,3687.1,3687.0,0.002]
[1754335236473,6.87716879,3687.1,3687.0,0.002]
[1754335236979,4.16501019,3687.1,3687.0,0.002]
[1754335237850,3.27121019,3687.1,3687.0,0.002]
[1754335238239,3.0,3687.1,3687.0,0.002]
[1754335238469,3.0,3687.1,3687.0,0.898]
[1754335238835,3.0,3687.1,3687.0,0.4641]
[1754335240177,0.59895043,3687.9,3687.0,0.4641]
[1754335240480,0.1352,3687.5,3687.3,2.71194758]
[1754335240776,0.1352,3687.5,3687.4,7.76393795]
[1754335244278,0.1352,3687.8,3687.7,2.71170597]
[1754335244476,0.1352,3687.8,3687.7,7.32980597]
[1754335244676,0.001,3688.7,3688.0,2.71148295]
[1754335244975,0.1352,3688.2,3688.1,4.156]
[1754335245177,0.001,3688.7,3688.3,2.71126575]
[1754335245363,0.1352,3688.4,3688.3,2.71126575]
[1754335245676,0.1352,3688.4,3688.3,7.76326575]
[1754335246381,0.1352,3688.4,3688.3,5.052]
[1754335246569,0.1352,3688.4,3688.3,4.6181]
[1754335246764,0.1352,3688.4,3688.3,4.156]
[1754335246957,0.1352,3688.4,3688.3,6.86727619]
[1754335247153,0.001,3688.7,3688.4,2.71113]
[1754335247481,0.001,3688.7,3688.6,2.71105568]
[1754335247777,0.001,3688.7,3688.6,6.86605568]
[1754335247982,0.001,3688.7,3688.6,7.77755568]
[1754335251768,0.001,3688.7,3688.4,2.71115214]
[1754335251972,0.001,3688.7,3688.6,4.155]
[1754335254293,0.001,3688.7,3688.6,6.86605568]
[1754335254489,0.001,3688.7,3688.6,4.6345]
[1754335255788,0.001,3688.7,3688.6,7.34555568]
[1754335256391,0.001,3688.7,3688.6,4.6345]
[1754335256618,0.001,3688.7,3688.6,7.34555568]
[1754335257091,0.001,3688.7,3688.6,4.6345]
[1754335257288,0.001,3688.7,3688.6,6.86605568]
[1754335257505,0.001,3688.7,3688.6,7.34555568]
[1754335258097,0.001,3688.7,3688.6,4.155]
[1754335258463,0.001,3688.7,3688.6,6.86605568]
[1754335258890,0.001,3688.7,3688.6,7.34555568]
[1754335259974,0.001,3688.7,3688.0,13.34470317]
[1754335259975,0.001,3688.7,3688.2,0.4795]
[1754335260198,0.4418,3688.7,3688.4,2.71115714]
[1754335260387,0.001,3688.7,3688.5,4.154]
[1754335260894,0.001,3688.7,3688.5,8.364]
[1754335261596,0.001,3688.7,3688.6,3.19055568]
[1754335261999,0.001,3688.7,3688.6,5.06298432]
[1754335262201,0.001,3688.7,3688.6,5.19818432]
[1754335262403,1e-08,3688.7,3688.6,5.19818432]
[1754335264304,1e-08,3688.7,3688.6,5.18433019]
[1754335266381,1e-08,3688.7,3688.6,9.33833019]
[1754335271008,1e-08,3688.7,3688.6,9.88833019]
[1754335271901,1e-08,3689.1,3689.0,3.26076172]
[1754335272076,1e-08,3689.1,3689.0,24.59766433]
[1754335272275,1e-08,3689.1,3689.0,28.63051755]
[1754335273305,1e-08,3689.1,3689.0,11.7787206]
[1754335274179,1e-08,3689.1,3689.0,11.3467206]
[1754335274581,1e-08,3689.1,3689.0,11.7787206]
[1754335276915,1e-08,3689.1,3689.0,11.3467206]
[1754335279184,1e-08,3689.1,3689.0,11.8132206]
[1754335282955,1e-08,3689.1,3689.0,11.3467206]
[1754335283239,1e-08,3689.1,3689.0,12.0772206]
[1754335283402,0.92530001,3689.1,3689.0,2.84596172]
[1754335283596,0.92530001,3689.1,3689.0,6.99796172]
[1754335284002,0.92530001,3689.1,3688.6,2.71105568]
[1754335284257,0.9253,3689.0,3688.9,2.7108352]
[1754335284390,0.9253,3689.0,3688.9,6.8628352]
[1754335284834,1e-08,3689.1,3689.0,2.71076172]
[1754335285016,1e-08,3689.1,3688.9,6.86281646]
[1754335285216,1e-08,3689.1,3688.7,0.1352]
[1754335285524,0.9253,3689.0,3688.8,4.152]
[1754335285728,1e-08,3689.1,3688.7,2.84617358]
[1754335285729,0.9253,3688.9,3688.7,2.84617358]
[1754335285905,1e-08,3689.1,3688.8,4.152]
[1754335286408,1e-08,3689.1,3688.9,2.71076709]
[1754335286725,0.9253,3689.0,3688.9,2.71076709]
[1754335286955,0.9253,3689.0,3688.9,4.152]
[1754335287257,0.9253,3689.0,3688.9,6.85857348]
[1754335288524,0.9253,3689.0,3688.9,4.14773828]
[1754335288852,0.9253,3689.0,3688.9,4.152]
[1754335289153,1.30240517,3689.0,3688.9,4.152]
[1754335289361,3.63606172,3689.0,3688.9,4.152]
[1754335290457,0.9253,3689.0,3688.9,4.152]
[1754335291731,1.0605,3689.0,3688.9,4.152]
[1754335291971,1.0605,3689.0,3688.9,6.8628352]
[1754335292478,1.0605,3689.0,3688.9,4.152]
[1754335292981,1.43762073,3689.0,3688.9,4.152]
[1754335294231,4.14838245,3689.0,3688.5,0.002]
[1754335294428,4.14838245,3689.0,3688.6,4.152]
[1754335294429,2.71095717,3688.8,3688.6,4.152]
[1754335294666,3.63628218,3688.7,3688.6,4.152]
[1754335294844,4.3222262,3688.7,3688.6,4.152]
[1754335295232,1.61124402,3688.7,3688.5,0.002]
[1754335295533,3.3969262,3688.7,3688.5,0.002]
[1754335295731,0.37712073,3689.0,3688.6,4.152]
[1754335295732,2.7108352,3688.9,3688.6,4.152]
[1754335295956,0.9253,3688.8,3688.6,4.152]
[1754335296158,1e-08,3689.1,3688.7,2.71096908]
[1754335296474,0.1352,3688.9,3688.8,4.152]
[1754335296833,1.0605,3688.9,3688.8,4.152]
[1754335299571,3.7713352,3688.9,3688.8,4.152]
[1754335299875,1.70870059,3688.9,3688.8,4.152]
[1754335300178,4.41953579,3688.9,3688.8,4.152]
[1754335300546,4.41953579,3688.9,3688.5,0.002]
[1754335300769,2.71098448,3688.7,3688.6,4.152]
[1754335301135,3.63628448,3688.7,3688.6,4.152]
[1754335301475,1.62483203,3688.7,3688.6,4.152]
[1754335301681,3.63633509,3688.7,3688.5,0.002]
[1754335301910,0.9253,3688.6,3688.5,0.002]
[1754335302053,0.9253,3688.6,3688.5,4.154]
[1754335302683,0.9253,3688.9,3688.5,4.154]
[1754335302900,0.9253,3688.8,3688.5,4.154]
[1754335303117,0.36361451,3688.8,3688.5,4.154]
[1754335303317,0.9253,3688.7,3688.5,4.154]
[1754335303796,0.36361451,3688.8,3688.5,4.154]
[1754335303797,0.9253,3688.6,3688.5,4.154]
[1754335304172,0.1352,3688.6,3688.5,4.154]
[1754335304375,0.1352,3688.9,3688.7,2.71095654]
[1754335304680,0.1352,3688.9,3688.8,4.6212]
[1754335305271,0.1352,3688.9,3688.8,4.152]
[1754335305989,0.5838,3688.9,3688.8,4.152]
[1754335306195,0.1352,3688.9,3688.8,4.152]
[1754335308802,1e-08,3689.1,3688.8,4.152]
[1754335308803,1e-08,3689.1,3688.8,8.01932199]
[1754335309001,1e-08,3689.1,3689.0,2.71076172]
[1754335309183,1e-08,3689.1,3689.0,7.0118085]
[1754335309386,1e-08,3689.1,3689.0,7.91996172]
[1754335317331,1e-08,3689.1,3689.0,7.48706172]
[1754335317514,1e-08,3689.1,3689.0,8.77794987]
[1754335317924,1e-08,3689.1,3689.0,9.21084987]
[1754335318239,1e-08,3689.1,3689.0,8.77794987]
[1754335318743,1e-08,3689.1,3689.0,6.99696172]
[1754335319034,0.93770001,3689.1,3689.0,2.84596172]
[1754335319203,0.93770001,3689.1,3689.0,4.151]
[1754335320150,0.93770001,3689.1,3689.0,6.86176172]
[1754335320430,0.93770001,3689.1,3688.6,0.1352]
[1754335320431,0.93770001,3689.1,3688.8,2.71088175]
[1754335320622,0.9377,3689.0,3688.9,4.151]
[1754335320814,0.9377,3689.0,3688.9,6.8618352]
[1754335321560,0.9377,3689.0,3688.9,4.151]
[1754335322057,1e-08,3689.1,3688.9,4.151]
[1754335322232,1e-08,3689.1,3689.0,2.71076172]
[1754335322544,1e-08,3689.1,3689.0,3.21370923]
[1754335322747,1e-08,3689.1,3689.0,3.2137085]
[1754335323316,0.43870001,3689.1,3689.0,6.86176172]
[1754335323517,0.93770001,3689.1,3689.0,6.86176172]
[1754335323848,0.93770001,3689.1,3688.9,0.1352]
[1754335324047,1e-08,3689.1,3689.0,4.151]
[1754335324721,0.93770001,3689.1,3689.0,4.151]
[1754335326009,1.31943665,3689.1,3689.0,4.151]
[1754335328194,1e-08,3689.1,3689.0,4.151]
[1754335328462,1e-08,3689.1,3689.0,6.86176172]
[1754335328671,1e-08,3689.1,3689.0,4.151]
[1754335329025,1e-08,3689.1,3689.0,6.86176172]
[1754335329226,1e-08,3689.1,3689.0,7.35086172]
[1754335329460,1e-08,3689.1,3689.0,4.151]
[1754335329764,1e-08,3689.1,3689.0,6.86176172]
[1754335330063,1e-08,3689.1,3689.0,7.35086172]
[1754335332649,1e-08,3689.1,3689.0,6.86176172]
[1754335332961,0.93770001,3689.1,3688.5,2.7130629]
[1754335333131,1.0729,3689.0,3688.6,6.86103367]
[1754335333326,0.9377,3688.9,3688.5,2.71309716]
[1754335333527,0.9377,3688.8,3688.5,0.002]
[1754335333728,4.0269927,3688.8,3688.5,0.002]
[1754335333939,3.78388489,3688.7,3688.5,0.002]
[1754335334154,3.78388489,3688.7,3688.6,4.15]
[1754335334664,1.0729,3688.7,3688.6,4.15]
[1754335335459,1.0729,3688.7,3688.5,0.002]
[1754335335624,1.08282664,3688.6,3688.5,0.002]
[1754335335828,1.08282664,3688.6,3688.5,4.152]
[1754335336027,3.79388232,3688.6,3688.5,4.152]
[1754335336828,3.79388232,3688.6,3688.5,0.002]
[1754335337024,3.79388232,3688.6,3688.5,4.152]
[1754335338266,1.08282664,3688.6,3688.5,4.152]
[1754335338461,3.79388232,3688.6,3688.5,4.152]
[1754335340349,6.77718232,3688.6,3688.5,0.002]
[1754335343269,37.32718232,3688.6,3688.5,0.002]
[1754335345169,7.32718232,3688.6,3688.5,0.002]
[1754335345374,37.32718232,3688.6,3688.5,0.002]
[1754335346361,41.47818232,3688.6,3688.5,0.002]
[1754335347240,43.10718232,3688.6,3688.5,0.002]
[1754335348064,7.89012918,3688.5,3688.4,1e-08]
[1754335348342,54.92550659,3688.5,3688.4,1e-08]
[1754335349291,6.26157027,3687.9,3687.8,0.002]
[1754335349496,53.76478582,3687.9,3687.8,0.002]
[1754335349657,56.66547333,3687.9,3687.8,0.002]
[1754335349868,59.39413519,3687.9,3687.8,0.002]
[1754335351245,46.17955381,3687.9,3687.8,0.002]
[1754335352277,44.53741964,3687.9,3687.8,0.002]
[1754335355343,40.38641964,3687.9,3687.8,0.002]
[1754335355563,40.38641964,3687.9,3687.8,0.4924]
[1754335355564,14.53741964,3687.9,3687.8,0.4924]
[1754335355750,14.53741964,3687.9,3687.8,0.002]
[1754335355950,15.00961964,3687.9,3687.8,0.002]
[1754335357379,14.53741964,3687.9,3687.8,0.002]
[1754335357586,4.94618751,3687.9,3687.8,0.4924]
[1754335357884,4.94618751,3687.9,3687.8,0.9367]
[1754335358294,7.65775778,3687.9,3687.8,0.9367]
[1754335358583,4.94618751,3687.9,3687.8,0.4924]
[1754335359381,7.65775778,3687.9,3687.8,0.4924]
[1754335359548,9.11316609,3687.9,3687.8,0.4924]
[1754335359949,10.06766609,3687.9,3687.8,0.002]
[1754335360781,9.11316609,3687.9,3687.8,0.002]
[1754335361156,9.11316609,3687.9,3687.8,0.4924]
[1754335361356,9.11316609,3687.9,3687.8,0.002]
[1754335361958,13.26416609,3687.9,3687.8,0.002]
[1754335362389,13.53566609,3687.9,3687.8,0.002]
[1754335362570,13.26416609,3687.9,3687.8,0.002]
[1754335364884,13.73636609,3687.9,3687.8,0.002]
[1754335365395,13.26416609,3687.9,3687.8,0.002]
[1754335365600,13.26416609,3687.9,3687.8,0.4924]
[1754335367805,13.26416609,3687.9,3687.8,0.002]
[1754335370023,44.74796609,3687.9,3687.8,0.002]
[1754335377194,39.66316609,3687.9,3687.8,0.002]
[1754335377330,43.81316609,3687.9,3687.8,0.002]
[1754335378936,44.74696609,3687.9,3687.8,0.002]
[1754335380622,44.19696609,3687.9,3687.8,0.002]
[1754335380805,43.81316609,3687.9,3687.8,0.002]
[1754335381208,15.44216609,3687.9,3687.8,0.002]
[1754335381409,13.81316609,3687.9,3687.8,0.002]
[1754335381608,43.81316609,3687.9,3687.8,0.002]
[1754335381821,44.27986609,3687.9,3687.8,0.002]
[1754335382827,44.74696609,3687.9,3687.8,0.002]
[1754335387152,46.37596609,3687.9,3687.8,0.002]
[1754335388756,43.81316609,3687.9,3687.8,0.002]
[1754335388960,46.37596609,3687.9,3687.8,0.002]
[1754335389356,39.66316609,3687.9,3687.8,0.002]
[1754335389556,43.81216609,3687.9,3687.8,0.4951]
[1754335389771,9.11316609,3687.9,3687.8,0.4951]
[1754335389977,11.80675778,3687.9,3687.8,0.9278]
[1754335390332,11.80675778,3687.9,3687.8,0.4951]
[1754335392050,7.65775778,3687.9,3687.8,0.4951]
[1754335392289,11.80675778,3687.9,3687.8,0.9278]
[1754335392500,12.07825778,3687.9,3687.8,0.9278]
[1754335392662,11.80675778,3687.9,3687.8,0.9278]
[1754335393382,11.80675778,3687.9,3687.8,0.4951]
[1754335394160,11.80675778,3687.9,3687.8,0.9278]
[1754335394561,11.80675778,3687.9,3687.8,0.4951]
[1754335394761,13.25857686,3687.9,3687.8,0.002]
[1754335395082,13.25857686,3687.9,3687.8,0.4951]
[1754335395488,11.80675778,3687.9,3687.8,0.4951]
[1754335396597,11.80675778,3687.9,3687.8,0.9588]
[1754335397170,4.94618751,3687.9,3687.8,0.9588]
[1754335397565,9.09418751,3687.9,3687.8,0.9588]
[1754335397768,4.94618751,3687.9,3687.8,0.9588]
[1754335397963,9.09418751,3687.9,3687.8,0.9588]
[1754335398903,11.80575778,3687.9,3687.8,0.9588]
[1754335399109,13.25748216,3687.9,3687.8,0.002]
[1754335400305,13.25748216,3687.9,3687.8,0.4688]
[1754335400666,10.54591189,3687.9,3687.8,0.4688]
[1754335400866,11.80575778,3687.9,3687.8,0.4688]
[1754335401178,9.09418751,3687.9,3687.8,0.4688]
[1754335401379,11.80575778,3687.9,3687.8,0.4688]
[1754335402293,9.09418751,3687.9,3687.8,0.4688]
[1754335402476,9.09418751,3687.9,3687.8,0.9325]
[1754335402676,1.94618751,3687.9,3687.8,0.9325]
[1754335402985,1.94618751,3687.9,3687.8,3.64414379]
[1754335403178,1.94618751,3687.9,3687.8,4.28013093]
[1754335403550,1.94618751,3687.9,3687.8,0.4688]
[1754335403807,4.65775778,3687.9,3687.8,0.002]
[1754335404013,7.65775778,3687.9,3687.8,0.002]
[1754335404215,8.60885778,3687.9,3687.8,0.002]
[1754335404718,22.51107333,3687.9,3687.8,0.002]
[1754335405014,25.23973519,3687.9,3687.8,0.002]
[1754335406606,7.67484937,3687.9,3687.8,0.002]
[1754335406793,1.94618751,3687.9,3687.8,0.4657]
[1754335406989,1.94618751,3687.9,3687.8,0.9325]
[1754335407605,8.80475778,3687.9,3687.8,0.002]
[1754335407966,6.09318751,3687.9,3687.8,0.002]
[1754335408162,8.80475778,3687.9,3687.8,0.002]
[1754335408368,13.08044356,3687.9,3687.8,0.002]
[1754335408767,14.58154356,3687.9,3687.8,0.002]
[1754335411106,44.58154356,3687.9,3687.8,0.002]
[1754335412012,14.58154356,3687.9,3687.8,0.002]
[1754335412199,38.93344356,3687.9,3687.8,0.002]
[1754335412400,13.08044356,3687.9,3687.8,0.4688]
[1754335413480,13.08044356,3687.9,3687.8,0.002]
[1754335415818,13.08044356,3687.9,3687.8,0.4688]
[1754335416180,10.36887329,3687.9,3687.8,0.4688]
[1754335416506,9.09318751,3687.9,3687.8,0.4688]
[1754335416917,7.65775778,3687.9,3687.8,0.4688]
[1754335417125,9.09318751,3687.9,3687.8,0.4688]
[1754335417332,11.80475778,3687.9,3687.8,0.4688]
[1754335419538,11.80475778,3687.9,3687.8,0.002]
[1754335419539,13.25647631,3687.9,3687.8,0.002]
[1754335419741,13.73287631,3687.9,3687.8,0.002]
[1754335419914,14.20757631,3687.9,3687.8,0.002]
[1754335420740,13.73117631,3687.9,3687.8,0.002]
[1754335421515,14.75757631,3687.9,3687.8,0.002]
[1754335421720,44.75757631,3687.9,3687.8,0.002]
[1754335422609,14.75757631,3687.9,3687.8,0.002]
[1754335422807,44.75757631,3687.9,3687.8,0.002]
[1754335423704,44.28117631,3687.9,3687.8,0.002]
[1754335423925,43.80647631,3687.9,3687.8,0.002]
[1754335424141,43.80547631,3687.9,3687.8,0.002]
[1754335424445,44.75657631,3687.9,3687.8,0.002]
[1754335424650,14.75657631,3687.9,3687.8,0.002]
[1754335425010,44.75657631,3687.9,3687.8,0.002]
[1754335425406,43.80547631,3687.9,3687.8,0.002]
[1754335426149,43.80547631,3687.9,3687.8,0.9325]
[1754335426150,4.94618751,3687.9,3687.8,0.9325]
[1754335427232,1.94618751,3687.9,3687.8,3.64414379]
[1754335428853,1.94618751,3687.9,3687.8,0.9325]
[1754335429061,1.94618751,3687.9,3687.8,3.64414379]
[1754335429907,1.94618751,3687.9,3687.8,4.70825637]
[1754335435219,1.94618751,3687.9,3687.8,8.91825637]
[1754335437422,1.94618751,3687.9,3687.8,8.45455637]
[1754335437648,1.94618751,3687.9,3687.8,8.90795637]
[1754335439757,1.94618751,3687.9,3687.8,7.39044379]
[1754335440055,1.94618751,3687.9,3687.8,11.53444379]
[1754335440350,1.94618751,3687.9,3687.8,8.356]
[1754335440920,1.94618751,3687.9,3687.8,11.98014379]
[1754335442248,1.94618751,3687.9,3687.8,11.52674379]
[1754335442665,1.94618751,3687.9,3687.8,7.38274379]
[1754335442963,1.94618751,3687.9,3687.8,11.52674379]
[1754335443348,1.94618751,3687.9,3687.8,13.46324903]
[1754335445350,1.94618751,3687.9,3687.8,13.00984903]
[1754335451969,1.94618751,3687.9,3687.8,12.55074903]
[1754335452149,1.94618751,3687.9,3687.8,13.00984903]
[1754335452474,1.94618751,3687.9,3687.8,8.79984903]
[1754335452675,1.94618751,3687.9,3687.8,9.38844903]
[1754335453179,1.94618751,3687.9,3687.8,8.47594903]
[1754335453380,1.94618751,3687.9,3687.8,4.145]
[1754335453381,2.84228751,3687.9,3687.8,4.145]
[1754335457556,1.94618751,3687.9,3687.8,6.85664379]
[1754335459164,1.94618751,3687.9,3687.8,4.145]
[1754335460187,2.41548751,3687.9,3687.8,4.145]
[1754335460385,2.41548751,3687.9,3687.8,0.002]
[1754335460553,2.41548751,3687.9,3687.8,4.145]
[1754335461488,2.86768751,3687.9,3687.8,4.145]
[1754335461986,1.94618751,3687.9,3687.8,6.85664379]
[1754335462400,1.94618751,3687.9,3687.8,3.19494379]
[1754335462557,1.94618751,3687.9,3687.8,7.33794379]
[1754335462878,1.94618751,3687.9,3687.8,6.85664379]
[1754335463078,1.94618751,3687.9,3687.8,4.145]
[1754335464196,2.86768751,3687.9,3687.8,4.144]
[1754335464563,3.15455626,3687.9,3687.8,0.002]
[1754335464761,9.41612653,3687.9,3687.8,0.002]
[1754335464966,52.76834208,3687.9,3687.8,0.002]
[1754335466776,56.91034208,3687.9,3687.8,0.002]
[1754335467059,39.41612653,3687.9,3687.8,0.002]
[1754335467279,38.86612653,3687.9,3687.8,0.002]
[1754335468177,39.41612653,3687.9,3687.8,0.002]
[1754335473473,9.41612653,3687.9,3687.8,0.002]
[1754335473995,39.41612653,3687.9,3687.8,0.002]
[1754335474390,52.76834208,3687.9,3687.8,0.002]
[1754335475376,56.91034208,3687.9,3687.8,0.002]
[1754335476103,52.76834208,3687.9,3687.8,0.002]
[1754335476411,58.53934208,3687.9,3687.8,0.002]
[1754335476709,56.91034208,3687.9,3687.8,0.002]
[1754335476909,43.55812653,3687.9,3687.8,0.002]
[1754335479021,39.41612653,3687.9,3687.8,0.002]
[1754335479218,7.94462653,3687.9,3687.8,0.002]
[1754335479406,11.79975778,3687.9,3687.8,0.4833]
[1754335479613,1.94618751,3687.9,3687.8,0.4833]
[1754335479925,9.08818751,3687.9,3687.8,0.4833]
[1754335480130,4.94618751,3687.9,3687.8,0.4833]
[1754335480303,6.08818751,3687.9,3687.8,0.9579]
[1754335480493,1.94618751,3687.9,3687.8,0.9579]
[1754335481235,1.94618751,3687.9,3687.8,0.4833]
[1754335481406,4.65775778,3687.9,3687.8,0.4833]
[1754335481621,4.65775778,3687.9,3687.8,0.002]
[1754335481800,9.10897631,3687.9,3687.8,0.002]
[1754335482000,13.25097631,3687.9,3687.8,0.002]
[1754335482242,14.42578494,3687.9,3687.8,0.002]
[1754335482554,13.97358494,3687.9,3687.8,0.002]
[1754335482695,14.42578494,3687.9,3687.8,0.002]
[1754335483797,10.79271467,3687.9,3687.8,0.002]
[1754335484336,5.19949614,3687.9,3687.8,0.9579]
[1754335484535,2.19949614,3687.9,3687.8,0.9579]
[1754335484698,2.33469614,3687.9,3687.8,3.66954379]
[1754335486901,2.33469614,3687.9,3687.8,0.4833]
[1754335488523,2.33469614,3687.9,3687.8,0.002]
[1754335488909,2.33469614,3687.9,3687.8,0.4638]
[1754335489729,2.08138751,3687.9,3687.8,0.4638]
[1754335490405,2.08138751,3687.9,3687.8,4.42186998]
[1754335491224,2.08138751,3687.9,3687.8,1.71022619]
[1754335492498,2.08138751,3687.9,3687.8,4.143]
[1754335493701,2.08138751,3687.9,3687.8,0.002]
[1754335493905,5.69625778,3687.9,3687.8,0.002]
[1754335494402,2.08138751,3687.9,3687.8,0.002]
[1754335494599,8.7301524,3687.9,3687.8,0.002]
[1754335494805,44.69452157,3687.9,3687.8,0.002]
[1754335495333,45.49825039,3687.9,3687.8,0.002]
[1754335502613,40.45495039,3687.9,3687.8,0.002]
[1754335503114,13.90975039,3687.9,3687.8,0.4638]
[1754335503819,13.90975039,3687.9,3687.8,0.002]
[1754335504543,15.36305039,3687.9,3687.8,0.002]
[1754335504747,14.45975039,3687.9,3687.8,0.002]
[1754335505561,2.19991633,3687.9,3687.8,0.9314]
[1754335506231,2.19991633,3687.9,3687.8,3.64304379]
[1754335506428,2.19991633,3687.9,3687.8,0.9314]
[1754335507356,2.19991633,3687.9,3687.8,3.64304379]
[1754335507557,2.19991633,3687.9,3687.8,3.65691262]
[1754335507747,2.19991633,3687.9,3687.8,4.28030788]
[1754335508936,2.19991633,3687.9,3687.8,4.29417671]
[1754335509134,2.19991633,3687.9,3687.8,4.28030788]
[1754335509361,2.19991633,3687.9,3687.8,3.81850788]
[1754335511355,2.19991633,3687.9,3687.8,4.28030788]
[1754335512049,2.19991633,3687.9,3687.8,8.49030788]
[1754335512250,1.94618751,3687.9,3687.8,8.49030788]
[1754335512966,1.94618751,3687.9,3687.8,8.02850788]
[1754335513148,1.94618751,3687.9,3687.8,8.49030788]
[1754335513467,1.94618751,3687.9,3687.8,12.62930788]
[1754335516781,1.94618751,3687.9,3687.8,12.63290788]
[1754335520464,1.94618751,3687.9,3687.8,12.16170788]
[1754335520775,1.94618751,3687.9,3687.8,11.69890788]
[1754335521163,1.94618751,3687.9,3687.8,8.35]
[1754335521376,1.94618751,3687.9,3687.8,11.06164379]
[1754335521577,1.94618751,3687.9,3687.8,4.212]
[1754335521765,1.94618751,3687.9,3687.8,8.35]
[1754335521955,1.94618751,3687.9,3687.8,11.06164379]
[1754335522157,1.94618751,3687.9,3687.8,13.39428724]
[1754335522344,1.94618751,3687.9,3687.8,13.52948724]
[1754335523747,1.94618751,3687.9,3687.8,13.05828724]
[1754335523950,1.94618751,3687.9,3687.8,12.57458724]
[1754335524146,1.94618751,3687.9,3687.8,13.05828724]
[1754335524449,1.94618751,3687.9,3687.8,13.52948724]
[1754335525878,1.94618751,3687.9,3687.8,13.05828724]
[1754335526182,1.94618751,3687.9,3687.8,12.57458724]
[1754335526476,1.94618751,3687.9,3687.8,5.58974345]
[1754335526681,1.94618751,3687.9,3687.8,8.349]
[1754335527152,2.88338751,3687.9,3687.8,11.06064379]
[1754335527549,1.94618751,3687.9,3687.8,4.212]
[1754335527744,2.88338751,3687.9,3687.8,8.349]
[1754335529349,2.88338751,3687.9,3687.8,4.212]
[1754335529597,2.88338751,3687.9,3687.8,4.139]
[1754335529793,2.88338751,3687.9,3687.8,0.002]
[1754335529794,3.4429628,3687.9,3687.8,0.002]
[1754335530487,9.15453307,3687.9,3687.8,0.002]
[1754335531594,1.94618751,3687.9,3687.8,4.139]
[1754335531894,1.94618751,3687.9,3687.8,7.80554379]
[1754335535089,1.94618751,3687.9,3687.8,2.71364379]
[1754335535301,1.94618751,3687.9,3687.8,6.85064379]
[1754335536191,1.94618751,3687.9,3687.8,7.33434379]
[1754335536490,1.94618751,3687.9,3687.8,8.39999123]
[1754335538981,1.94618751,3687.9,3687.8,7.91629123]